[Event "Early-Titled-Tuesday-Blitz-February-20-2024"]
[Site "Chess.com"]
[Date "2024.02.20"]
[Round "3"]
[White "MKlose11"]
[Black "Iball95"]
[Result "0-1"]
[WhiteElo "2625"]
[BlackElo "2893"]
[TimeControl "180+1"]
[EndTime "8:28:43 PST"]
[Termination "Iball95 won by resignation"]

1. e4 {[%clk 0:03:00.9]} 1... c5 {[%clk 0:02:57.4]} 2. Nc3 {[%clk 0:02:57.4]}
2... e6 {[%clk 0:02:56.9]} 3. g3 {[%clk 0:02:56.6]} 3... d5 {[%clk 0:02:57]} 4.
Bg2 {[%clk 0:02:54.2]} 4... Nf6 {[%clk 0:02:56.9]} 5. d3 {[%clk 0:02:49.4]} 5...
Nc6 {[%clk 0:02:55]} 6. Nge2 {[%clk 0:02:49.6]} 6... dxe4 {[%clk 0:02:54.1]} 7.
Nxe4 {[%clk 0:02:46.7]} 7... Nxe4 {[%clk 0:02:53.9]} 8. Bxe4 {[%clk 0:02:47.6]}
8... Bd7 {[%clk 0:02:52.8]} 9. O-O {[%clk 0:02:47.7]} 9... Be7 {[%clk
0:02:52.7]} 10. Nc3 {[%clk 0:02:47.7]} 10... O-O {[%clk 0:02:42]} 11. Be3 {[%clk
0:02:47.5]} 11... Rc8 {[%clk 0:02:37.7]} 12. Qh5 {[%clk 0:02:43.6]} 12... g6
{[%clk 0:02:35.6]} 13. Qh6 {[%clk 0:02:40]} 13... b6 {[%clk 0:02:31.3]} 14. Bg2
{[%clk 0:02:36.7]} 14... Bf6 {[%clk 0:01:59.2]} 15. Ne4 {[%clk 0:02:28.2]} 15...
Bg7 {[%clk 0:01:58.6]} 16. Qh3 {[%clk 0:02:07]} 16... e5 {[%clk 0:01:47.2]} 17.
Qh4 {[%clk 0:01:59.3]} 17... Qxh4 {[%clk 0:01:47.6]} 18. gxh4 {[%clk 0:02:00.2]}
18... Rcd8 {[%clk 0:01:44.2]} 19. h5 {[%clk 0:01:58.3]} 19... gxh5 {[%clk
0:01:41.1]} 20. Rad1 {[%clk 0:01:50.8]} 20... Nb4 {[%clk 0:01:27.7]} 21. c3
{[%clk 0:01:47.5]} 21... Nd5 {[%clk 0:01:16.1]} 22. Ng3 {[%clk 0:01:47.4]} 22...
Nxe3 {[%clk 0:01:13.3]} 23. fxe3 {[%clk 0:01:48.3]} 23... h4 {[%clk 0:01:14]}
24. Nf5 {[%clk 0:01:47]} 24... Be6 {[%clk 0:01:07]} 25. a3 {[%clk 0:01:36.4]}
25... Rd7 {[%clk 0:01:06.9]} 26. Be4 {[%clk 0:01:36.3]} 26... Rfd8 {[%clk
0:01:07.1]} 27. Nxh4 {[%clk 0:01:27.2]} 27... Bh6 {[%clk 0:01:06.2]} 28. Nf5
{[%clk 0:01:16.7]} 28... Bxf5 {[%clk 0:01:04.1]} 29. Rxf5 {[%clk 0:01:15.6]}
29... Bxe3+ {[%clk 0:01:04.4]} 30. Kf1 {[%clk 0:01:12]} 30... Bf4 {[%clk
0:01:04.7]} 31. Ke2 {[%clk 0:01:10]} 31... Kh8 {[%clk 0:01:01.5]} 32. Rg1 {[%clk
0:00:54.6]} 32... Rg8 {[%clk 0:00:56.9]} 33. Rxg8+ {[%clk 0:00:54.3]} 33... Kxg8
{[%clk 0:00:57.8]} 34. h4 {[%clk 0:00:53.9]} 34... Kg7 {[%clk 0:00:57.2]} 35. h5
{[%clk 0:00:53.9]} 35... h6 {[%clk 0:00:56.7]} 36. b4 {[%clk 0:00:49.3]} 36...
Rd6 {[%clk 0:00:55.3]} 37. Kf3 {[%clk 0:00:46.7]} 37... cxb4 {[%clk 0:00:45.7]}
38. axb4 {[%clk 0:00:45.7]} 38... a5 {[%clk 0:00:45.8]} 39. bxa5 {[%clk
0:00:42.6]} 39... bxa5 {[%clk 0:00:46.7]} 40. d4 {[%clk 0:00:43.3]} 40... f6
{[%clk 0:00:46.1]} 41. dxe5 {[%clk 0:00:36.9]} 41... fxe5 {[%clk 0:00:47]} 42.
c4 {[%clk 0:00:30.6]} 42... a4 {[%clk 0:00:40.8]} 43. Bd5 {[%clk 0:00:30.8]}
43... Rd7 {[%clk 0:00:40.6]} 44. Ke4 {[%clk 0:00:26]} 44... a3 {[%clk 0:00:39]}
45. c5 {[%clk 0:00:26.3]} 45... a2 {[%clk 0:00:39]} 46. Bxa2 {[%clk 0:00:20.6]}
46... Rd4+ {[%clk 0:00:38.9]} 47. Kf3 {[%clk 0:00:20.4]} 47... Rd3+ {[%clk
0:00:39.3]} 48. Kf2 {[%clk 0:00:19.4]} 48... Rd2+ {[%clk 0:00:38.7]} 49. Kf3
{[%clk 0:00:18.6]} 49... Rxa2 {[%clk 0:00:39.6]} 0-1

[Event "Early-Titled-Tuesday-Blitz-February-20-2024"]
[Site "Chess.com"]
[Date "2024.02.20"]
[Round "3"]
[White "Viacheslav92"]
[Black "RamyresCoelho"]
[Result "1-0"]
[WhiteElo "2550"]
[BlackElo "2245"]
[TimeControl "180+1"]
[EndTime "8:28:43 PST"]
[Termination "Viacheslav92 won by checkmate"]

1. e4 {[%clk 0:03:00.9]} 1... c5 {[%clk 0:02:52.2]} 2. Nf3 {[%clk 0:02:54.8]}
2... d6 {[%clk 0:02:48.8]} 3. d4 {[%clk 0:02:55.3]} 3... cxd4 {[%clk 0:02:49.7]}
4. Nxd4 {[%clk 0:02:56]} 4... Nf6 {[%clk 0:02:49.4]} 5. Nc3 {[%clk 0:02:56.6]}
5... a6 {[%clk 0:02:49.6]} 6. Rg1 {[%clk 0:02:57.1]} 6... h5 {[%clk 0:02:46.5]}
7. h3 {[%clk 0:02:56.3]} 7... e6 {[%clk 0:02:45.7]} 8. g4 {[%clk 0:02:55.2]}
8... hxg4 {[%clk 0:02:46.5]} 9. hxg4 {[%clk 0:02:56.1]} 9... Be7 {[%clk
0:02:46]} 10. g5 {[%clk 0:02:55.6]} 10... Nfd7 {[%clk 0:02:45.7]} 11. Be3 {[%clk
0:02:56.5]} 11... Ne5 {[%clk 0:02:44.2]} 12. f4 {[%clk 0:02:48.9]} 12... Ng6
{[%clk 0:02:37.3]} 13. Qd2 {[%clk 0:02:44.1]} 13... Nc6 {[%clk 0:02:27]} 14.
O-O-O {[%clk 0:02:42.1]} 14... Nxd4 {[%clk 0:02:26.1]} 15. Bxd4 {[%clk 0:02:43]}
15... Qc7 {[%clk 0:02:02.2]} 16. Bxg7 {[%clk 0:02:37.3]} 16... Rh4 {[%clk
0:01:54.2]} 17. f5 {[%clk 0:02:26.1]} 17... exf5 {[%clk 0:01:44.8]} 18. Nd5
{[%clk 0:02:26.6]} 18... Qd8 {[%clk 0:01:31.8]} 19. Nxe7 {[%clk 0:02:02.4]}
19... Qxe7 {[%clk 0:01:32.7]} 20. Bf6 {[%clk 0:02:02.7]} 20... Qe6 {[%clk
0:01:23.3]} 21. exf5 {[%clk 0:01:58.2]} 21... Qxa2 {[%clk 0:01:04.4]} 22. Qe3+
{[%clk 0:01:32.4]} 22... Kf8 {[%clk 0:01:01.8]} 23. fxg6 {[%clk 0:01:27.1]}
23... Be6 {[%clk 0:00:35.5]} 24. Bd3 {[%clk 0:01:17]} 24... Rh2 {[%clk
0:00:26.5]} 25. b3 {[%clk 0:00:56.1]} 25... Rc8 {[%clk 0:00:18.5]} 26. Rd2
{[%clk 0:00:35.3]} 26... Rh4 {[%clk 0:00:09.1]} 27. gxf7 {[%clk 0:00:25.3]}
27... Qxb3 {[%clk 0:00:08.4]} 28. g6 {[%clk 0:00:18.6]} 28... Rxc2+ {[%clk
0:00:02.3]} 29. Rxc2 {[%clk 0:00:17.5]} 29... Qa3+ {[%clk 0:00:02.5]} 30. Bb2
{[%clk 0:00:16.7]} 30... Qa5 {[%clk 0:00:03.4]} 31. g7+ {[%clk 0:00:16]} 31...
Ke7 {[%clk 0:00:03]} 32. f8=Q+ {[%clk 0:00:15.9]} 32... Kd7 {[%clk 0:00:03.9]}
33. g8=Q {[%clk 0:00:13.2]} 33... Qa1+ {[%clk 0:00:03.2]} 34. Bxa1 {[%clk
0:00:12.8]} 34... Rb4 {[%clk 0:00:03.3]} 35. Qd8# {[%clk 0:00:11.9]} 1-0

[Event "Early-Titled-Tuesday-Blitz-February-20-2024"]
[Site "Chess.com"]
[Date "2024.02.20"]
[Round "3"]
[White "AlexPapasimakopoulos"]
[Black "Juicy_Fork"]
[Result "1-0"]
[WhiteElo "2768"]
[BlackElo "2483"]
[TimeControl "180+1"]
[EndTime "8:28:45 PST"]
[Termination "AlexPapasimakopoulos won by resignation"]

1. d4 {[%clk 0:03:00.9]} 1... Nf6 {[%clk 0:02:59.2]} 2. c4 {[%clk 0:03:00.8]}
2... g6 {[%clk 0:02:59.8]} 3. Nc3 {[%clk 0:03:00.5]} 3... Bg7 {[%clk 0:03:00.4]}
4. Bg5 {[%clk 0:02:59.9]} 4... O-O {[%clk 0:03:00.2]} 5. e3 {[%clk 0:03:00]}
5... d6 {[%clk 0:03:00.3]} 6. Nf3 {[%clk 0:02:59.9]} 6... c5 {[%clk 0:03:00.7]}
7. Be2 {[%clk 0:02:59.7]} 7... h6 {[%clk 0:02:57.9]} 8. Bh4 {[%clk 0:02:59.6]}
8... g5 {[%clk 0:02:55.3]} 9. Bg3 {[%clk 0:02:59.5]} 9... g4 {[%clk 0:02:47.5]}
10. Nd2 {[%clk 0:02:56.4]} 10... cxd4 {[%clk 0:02:46.8]} 11. exd4 {[%clk
0:02:57.3]} 11... Nc6 {[%clk 0:02:47.1]} 12. d5 {[%clk 0:02:50.6]} 12... Nd4
{[%clk 0:02:47.1]} 13. O-O {[%clk 0:02:50.7]} 13... Qb6 {[%clk 0:02:39.6]} 14.
b3 {[%clk 0:02:43.5]} 14... Bf5 {[%clk 0:02:32.4]} 15. Rc1 {[%clk 0:02:43.1]}
15... h5 {[%clk 0:02:23.9]} 16. Re1 {[%clk 0:02:42.3]} 16... Nd7 {[%clk
0:02:16.4]} 17. Nde4 {[%clk 0:02:28.1]} 17... Nc5 {[%clk 0:02:07.5]} 18. Nxc5
{[%clk 0:02:22.9]} 18... dxc5 {[%clk 0:02:08.4]} 19. Bd3 {[%clk 0:02:22.6]}
19... Bxd3 {[%clk 0:01:56.4]} 20. Qxd3 {[%clk 0:02:22.2]} 20... Rae8 {[%clk
0:01:50]} 21. Be5 {[%clk 0:02:22.1]} 21... Qg6 {[%clk 0:01:38.5]} 22. Qxg6
{[%clk 0:02:15.5]} 22... fxg6 {[%clk 0:01:39.4]} 23. Bxg7 {[%clk 0:02:15.1]}
23... Kxg7 {[%clk 0:01:40.3]} 24. Ne4 {[%clk 0:02:12.9]} 24... b6 {[%clk
0:01:31]} 25. Ng5 {[%clk 0:02:12.8]} 25... Rf6 {[%clk 0:01:16.9]} 26. Re5 {[%clk
0:02:08.7]} 26... Rf5 {[%clk 0:01:08.7]} 27. Ne6+ {[%clk 0:01:59.6]} 27... Kf6
{[%clk 0:01:06.7]} 28. Re3 {[%clk 0:01:51.6]} 28... Kf7 {[%clk 0:00:28.7]} 29.
Nxd4 {[%clk 0:01:45.6]} 29... cxd4 {[%clk 0:00:29.6]} 30. Re4 {[%clk 0:01:44.5]}
30... e5 {[%clk 0:00:30]} 31. dxe6+ {[%clk 0:01:42]} 31... Rxe6 {[%clk
0:00:30.3]} 32. Rce1 {[%clk 0:01:28.5]} 32... Rff6 {[%clk 0:00:12.4]} 33. Kf1
{[%clk 0:01:27.1]} 33... d3 {[%clk 0:00:11.9]} 34. R4e3 {[%clk 0:01:10]} 34...
Rxe3 {[%clk 0:00:08.9]} 35. Rxe3 {[%clk 0:01:09.6]} 35... Rd6 {[%clk 0:00:09.1]}
36. Ke1 {[%clk 0:01:09.7]} 36... g5 {[%clk 0:00:03.9]} 37. Kd2 {[%clk
0:01:07.1]} 37... Rf6 {[%clk 0:00:04.1]} 38. f3 {[%clk 0:01:07.6]} 38... gxf3
{[%clk 0:00:03.7]} 39. Rxf3 {[%clk 0:01:08.5]} 39... Rxf3 {[%clk 0:00:02.9]} 40.
gxf3 {[%clk 0:01:09.4]} 40... Kf6 {[%clk 0:00:03.3]} 41. Kxd3 {[%clk 0:01:09.9]}
41... Kf5 {[%clk 0:00:04.2]} 42. Ke3 {[%clk 0:01:10.5]} 42... g4 {[%clk
0:00:04.2]} 43. b4 {[%clk 0:01:01.5]} 43... a5 {[%clk 0:00:02.4]} 44. c5 {[%clk
0:00:55.4]} 44... bxc5 {[%clk 0:00:01.8]} 45. fxg4+ {[%clk 0:00:50.6]} 45...
hxg4 {[%clk 0:00:01.6]} 46. bxa5 {[%clk 0:00:46.4]} 46... Ke5 {[%clk 0:00:02.3]}
47. a6 {[%clk 0:00:46.4]} 47... Kd6 {[%clk 0:00:02.4]} 48. a7 {[%clk 0:00:46]}
1-0

[Event "Early-Titled-Tuesday-Blitz-February-20-2024"]
[Site "Chess.com"]
[Date "2024.02.20"]
[Round "3"]
[White "FLYD"]
[Black "Chessdude1987"]
[Result "0-1"]
[WhiteElo "1863"]
[BlackElo "2315"]
[TimeControl "180+1"]
[EndTime "8:28:46 PST"]
[Termination "Chessdude1987 won on time"]

1. e4 {[%clk 0:03:00.9]} 1... e6 {[%clk 0:03:00]} 2. d4 {[%clk 0:02:59]} 2... d5
{[%clk 0:03:00.5]} 3. Nc3 {[%clk 0:02:56.6]} 3... Nf6 {[%clk 0:03:00.1]} 4. Bg5
{[%clk 0:02:56.1]} 4... h6 {[%clk 0:02:59.7]} 5. Bxf6 {[%clk 0:02:51.2]} 5...
Qxf6 {[%clk 0:03:00.6]} 6. exd5 {[%clk 0:02:51.4]} 6... Bb4 {[%clk 0:03:00.3]}
7. Nf3 {[%clk 0:02:46.6]} 7... exd5 {[%clk 0:02:59.8]} 8. Bd3 {[%clk 0:02:43.9]}
8... Bxc3+ {[%clk 0:02:57.4]} 9. bxc3 {[%clk 0:02:43.7]} 9... O-O {[%clk
0:02:54.7]} 10. O-O {[%clk 0:02:39.9]} 10... c5 {[%clk 0:02:54.8]} 11. c4 {[%clk
0:02:35.4]} 11... dxc4 {[%clk 0:02:35.2]} 12. Bxc4 {[%clk 0:02:34.6]} 12... Nc6
{[%clk 0:02:35.4]} 13. d5 {[%clk 0:02:20.6]} 13... Na5 {[%clk 0:02:35.3]} 14.
Be2 {[%clk 0:02:18.2]} 14... c4 {[%clk 0:02:26.4]} 15. Qd2 {[%clk 0:02:11.1]}
15... b6 {[%clk 0:02:20.7]} 16. Nd4 {[%clk 0:02:03.4]} 16... Rd8 {[%clk
0:02:17.3]} 17. Bf3 {[%clk 0:02:03]} 17... Bb7 {[%clk 0:02:14.6]} 18. Ne2 {[%clk
0:01:56.9]} 18... Rd6 {[%clk 0:02:02.1]} 19. Nc3 {[%clk 0:01:53.9]} 19... Rd7
{[%clk 0:01:55]} 20. Rad1 {[%clk 0:01:50.3]} 20... Rad8 {[%clk 0:01:50.2]} 21.
Qe3 {[%clk 0:01:36.9]} 21... Qg5 {[%clk 0:01:35.4]} 22. Qd4 {[%clk 0:01:27.3]}
22... f5 {[%clk 0:01:19.4]} 23. Rfe1 {[%clk 0:01:03.4]} 23... Kh7 {[%clk
0:01:16.7]} 24. Re6 {[%clk 0:00:57.7]} 24... Rf8 {[%clk 0:00:57.3]} 25. h4
{[%clk 0:00:53.4]} 25... Qd8 {[%clk 0:00:56.8]} 26. Nb5 {[%clk 0:00:43.5]} 26...
a6 {[%clk 0:00:39.6]} 27. Nc3 {[%clk 0:00:38.7]} 27... b5 {[%clk 0:00:39.8]} 28.
h5 {[%clk 0:00:28.7]} 28... b4 {[%clk 0:00:38.9]} 29. Ne2 {[%clk 0:00:27.3]}
29... Rd6 {[%clk 0:00:38.8]} 30. Nf4 {[%clk 0:00:23.3]} 30... Rf6 {[%clk
0:00:34.8]} 31. Rxf6 {[%clk 0:00:18.8]} 31... Rxf6 {[%clk 0:00:32.5]} 32. Ne6
{[%clk 0:00:14.9]} 32... Qd6 {[%clk 0:00:29.5]} 33. Nc5 {[%clk 0:00:14.7]} 33...
Ba8 {[%clk 0:00:28.8]} 34. Na4 {[%clk 0:00:12.7]} 34... c3 {[%clk 0:00:26.1]}
35. Nb6 {[%clk 0:00:12.1]} 35... Bb7 {[%clk 0:00:25.3]} 36. Nc4 {[%clk
0:00:05.8]} 36... Nxc4 {[%clk 0:00:24.6]} 37. Qxc4 {[%clk 0:00:06.5]} 37... Rf7
{[%clk 0:00:24.2]} 38. Rd4 {[%clk 0:00:03.5]} 38... a5 {[%clk 0:00:22.1]} 39.
Qb5 {[%clk 0:00:02.4]} 39... Re7 {[%clk 0:00:21.7]} 40. Rd1 {[%clk 0:00:02]}
40... Re5 {[%clk 0:00:20.5]} 41. Qxa5 {[%clk 0:00:01.9]} 41... Qe7 {[%clk
0:00:18]} 0-1

[Event "Early-Titled-Tuesday-Blitz-February-20-2024"]
[Site "Chess.com"]
[Date "2024.02.20"]
[Round "3"]
[White "jaskol95"]
[Black "xamax2000"]
[Result "0-1"]
[WhiteElo "2590"]
[BlackElo "2859"]
[TimeControl "180+1"]
[EndTime "8:28:47 PST"]
[Termination "xamax2000 won by resignation"]

1. d4 {[%clk 0:03:00.9]} 1... d5 {[%clk 0:02:59.7]} 2. Nc3 {[%clk 0:03:01.1]}
2... Nf6 {[%clk 0:02:59.7]} 3. Bf4 {[%clk 0:03:01.2]} 3... c5 {[%clk 0:03:00.3]}
4. e4 {[%clk 0:03:01.5]} 4... cxd4 {[%clk 0:03:00.2]} 5. Qxd4 {[%clk 0:02:58.1]}
5... Nc6 {[%clk 0:03:00.7]} 6. Bb5 {[%clk 0:02:58.5]} 6... Bd7 {[%clk
0:03:00.8]} 7. Bxc6 {[%clk 0:02:59.1]} 7... Bxc6 {[%clk 0:03:01.7]} 8. e5 {[%clk
0:02:59.7]} 8... Nd7 {[%clk 0:03:02.4]} 9. e6 {[%clk 0:03:00.4]} 9... fxe6
{[%clk 0:03:02.9]} 10. Nf3 {[%clk 0:03:00.6]} 10... Qb6 {[%clk 0:03:03.5]} 11.
Qxb6 {[%clk 0:02:48.4]} 11... axb6 {[%clk 0:03:02.5]} 12. O-O {[%clk 0:02:45.2]}
12... g5 {[%clk 0:03:00.6]} 13. Nxg5 {[%clk 0:02:36.2]} 13... e5 {[%clk
0:02:58.9]} 14. Bg3 {[%clk 0:02:36.2]} 14... d4 {[%clk 0:02:34.8]} 15. Nb1
{[%clk 0:02:13]} 15... Bd5 {[%clk 0:02:21.3]} 16. Re1 {[%clk 0:02:04.7]} 16...
Bg7 {[%clk 0:02:16.8]} 17. Nd2 {[%clk 0:02:00.5]} 17... O-O {[%clk 0:02:09.2]}
18. Ngf3 {[%clk 0:01:41.6]} 18... Rf5 {[%clk 0:02:06.7]} 19. Nh4 {[%clk
0:01:36.2]} 19... Rh5 {[%clk 0:02:05.8]} 20. Nhf3 {[%clk 0:01:33.1]} 20... b5
{[%clk 0:01:54.6]} 21. Ne4 {[%clk 0:01:20.9]} 21... b4 {[%clk 0:01:50.2]} 22. a3
{[%clk 0:01:17.9]} 22... bxa3 {[%clk 0:01:44.3]} 23. Rxa3 {[%clk 0:01:18.2]}
23... Rxa3 {[%clk 0:01:44.6]} 24. bxa3 {[%clk 0:01:19.1]} 24... Rf5 {[%clk
0:01:40.2]} 25. Nfd2 {[%clk 0:01:10.1]} 25... Rf8 {[%clk 0:01:37.7]} 26. c4
{[%clk 0:00:52.8]} 26... Bc6 {[%clk 0:01:36.9]} 27. Rb1 {[%clk 0:00:41.5]} 27...
Ra8 {[%clk 0:01:34.3]} 28. Rb3 {[%clk 0:00:41.6]} 28... h6 {[%clk 0:01:13.7]}
29. f3 {[%clk 0:00:41.6]} 29... Bf8 {[%clk 0:01:13.5]} 30. Kf2 {[%clk
0:00:36.2]} 30... e6 {[%clk 0:01:13.8]} 31. c5 {[%clk 0:00:27.9]} 31... Bd5
{[%clk 0:01:06.4]} 32. Rd3 {[%clk 0:00:15.3]} 32... Bxc5 {[%clk 0:01:06.1]} 33.
Nb1 {[%clk 0:00:06.9]} 33... Be7 {[%clk 0:01:02.9]} 34. Rd2 {[%clk 0:00:02.9]}
34... Ra5 {[%clk 0:00:54.8]} 35. Re2 {[%clk 0:00:01.9]} 35... Kf7 {[%clk
0:00:53.2]} 36. h4 {[%clk 0:00:01.4]} 36... Rb5 {[%clk 0:00:26.5]} 37. h5 {[%clk
0:00:01.6]} 37... Nc5 {[%clk 0:00:24.8]} 38. Ned2 {[%clk 0:00:01.9]} 38... Nd3+
{[%clk 0:00:24.4]} 39. Kg1 {[%clk 0:00:02.4]} 39... Bg5 {[%clk 0:00:20.6]} 40.
Bxe5 {[%clk 0:00:02.5]} 40... Nxe5 {[%clk 0:00:19.4]} 41. Rxe5 {[%clk
0:00:02.8]} 41... Rb2 {[%clk 0:00:19.2]} 42. Kh2 {[%clk 0:00:02.3]} 42... Bf4+
{[%clk 0:00:18.6]} 43. g3 {[%clk 0:00:02.4]} 43... Bxe5 {[%clk 0:00:19.5]} 44.
f4 {[%clk 0:00:03.2]} 0-1

[Event "Early-Titled-Tuesday-Blitz-February-20-2024"]
[Site "Chess.com"]
[Date "2024.02.20"]
[Round "3"]
[White "NikitaShnadrygin"]
[Black "Bauman_Guy"]
[Result "0-1"]
[WhiteElo "2693"]
[BlackElo "2906"]
[TimeControl "180+1"]
[EndTime "8:28:48 PST"]
[Termination "Bauman_Guy won on time"]

1. Nf3 {[%clk 0:02:58.3]} 1... d5 {[%clk 0:02:58.2]} 2. g3 {[%clk 0:02:58.2]}
2... c6 {[%clk 0:02:58.3]} 3. Bg2 {[%clk 0:02:58.1]} 3... Bg4 {[%clk 0:02:59]}
4. Ne5 {[%clk 0:02:58.2]} 4... Bf5 {[%clk 0:02:58.8]} 5. O-O {[%clk 0:02:58.3]}
5... Nd7 {[%clk 0:02:59]} 6. d4 {[%clk 0:02:58.7]} 6... e6 {[%clk 0:02:58.7]} 7.
b3 {[%clk 0:02:57.7]} 7... Nxe5 {[%clk 0:02:56.3]} 8. dxe5 {[%clk 0:02:57.8]}
8... Ne7 {[%clk 0:02:56.4]} 9. Bb2 {[%clk 0:02:57.6]} 9... h6 {[%clk 0:02:56.1]}
10. Nd2 {[%clk 0:02:57.3]} 10... a5 {[%clk 0:02:46.2]} 11. e4 {[%clk 0:02:55.3]}
11... Bh7 {[%clk 0:02:44.1]} 12. exd5 {[%clk 0:02:52.5]} 12... cxd5 {[%clk
0:02:42.3]} 13. c4 {[%clk 0:02:51.9]} 13... a4 {[%clk 0:02:41.7]} 14. cxd5
{[%clk 0:02:30.3]} 14... Nxd5 {[%clk 0:02:42.6]} 15. Nc4 {[%clk 0:02:20.7]}
15... a3 {[%clk 0:02:39.2]} 16. Bd4 {[%clk 0:02:19.7]} 16... Be7 {[%clk
0:02:25.8]} 17. Bxd5 {[%clk 0:01:40.7]} 17... Qxd5 {[%clk 0:02:12]} 18. Nb6
{[%clk 0:01:38.2]} 18... Qa5 {[%clk 0:02:12.1]} 19. Nxa8 {[%clk 0:01:37.9]}
19... Qxa8 {[%clk 0:02:13]} 20. Qf3 {[%clk 0:01:29.9]} 20... O-O {[%clk
0:02:12]} 21. Rac1 {[%clk 0:01:25.8]} 21... Rd8 {[%clk 0:02:10.7]} 22. Qe3
{[%clk 0:01:22.8]} 22... b5 {[%clk 0:01:58]} 23. Rfd1 {[%clk 0:01:22.3]} 23...
Bf5 {[%clk 0:01:49.5]} 24. f3 {[%clk 0:01:13.7]} 24... Bg5 {[%clk 0:01:42.2]}
25. f4 {[%clk 0:01:12.8]} 25... Be7 {[%clk 0:01:37.8]} 26. Bb6 {[%clk
0:01:00.7]} 26... Bh3 {[%clk 0:01:22.6]} 27. Qe2 {[%clk 0:00:53.6]} 27... Rxd1+
{[%clk 0:01:11.1]} 28. Rxd1 {[%clk 0:00:53.2]} 28... Qc6 {[%clk 0:01:08.8]} 29.
Bd4 {[%clk 0:00:45.6]} 29... h5 {[%clk 0:01:04.4]} 30. Be3 {[%clk 0:00:26]}
30... Bg4 {[%clk 0:00:54.5]} 31. Qd2 {[%clk 0:00:25.9]} 31... Bxd1 {[%clk
0:00:47.5]} 32. Qxd1 {[%clk 0:00:26.8]} 32... h4 {[%clk 0:00:48.1]} 33. gxh4
{[%clk 0:00:24.6]} 33... Qe4 {[%clk 0:00:44.7]} 34. Qd2 {[%clk 0:00:20.9]} 34...
Bxh4 {[%clk 0:00:42.8]} 35. Bf2 {[%clk 0:00:18.2]} 35... Be7 {[%clk 0:00:34.2]}
36. Qd7 {[%clk 0:00:12.9]} 36... Bf8 {[%clk 0:00:29.8]} 37. Qd2 {[%clk
0:00:12.6]} 37... g6 {[%clk 0:00:26.5]} 38. Be3 {[%clk 0:00:08.3]} 38... Bb4
{[%clk 0:00:23.9]} 39. Qf2 {[%clk 0:00:06.8]} 39... Bc3 {[%clk 0:00:20.6]} 40.
Qe2 {[%clk 0:00:04.4]} 40... Bd4 {[%clk 0:00:18.4]} 0-1

[Event "Early-Titled-Tuesday-Blitz-February-20-2024"]
[Site "Chess.com"]
[Date "2024.02.20"]
[Round "3"]
[White "DreamsAreFake"]
[Black "Shield12"]
[Result "1/2-1/2"]
[WhiteElo "2754"]
[BlackElo "2968"]
[TimeControl "180+1"]
[EndTime "8:28:49 PST"]
[Termination "Game drawn by repetition"]

1. Nf3 {[%clk 0:02:59]} 1... c5 {[%clk 0:03:00.1]} 2. g3 {[%clk 0:02:59.3]} 2...
g6 {[%clk 0:03:00.6]} 3. Bg2 {[%clk 0:02:58.8]} 3... Bg7 {[%clk 0:03:01.2]} 4.
c3 {[%clk 0:02:59.5]} 4... Nf6 {[%clk 0:02:40.4]} 5. d4 {[%clk 0:02:58.9]} 5...
cxd4 {[%clk 0:02:40.8]} 6. cxd4 {[%clk 0:02:59.8]} 6... d5 {[%clk 0:02:41.1]} 7.
O-O {[%clk 0:02:59.2]} 7... Nc6 {[%clk 0:02:39.9]} 8. Ne5 {[%clk 0:02:57.5]}
8... O-O {[%clk 0:02:38.7]} 9. Nc3 {[%clk 0:02:51.7]} 9... e6 {[%clk 0:02:37.2]}
10. Bf4 {[%clk 0:02:49.6]} 10... Nh5 {[%clk 0:02:33.4]} 11. Nxc6 {[%clk
0:02:45.1]} 11... bxc6 {[%clk 0:02:34.3]} 12. Be3 {[%clk 0:02:45.9]} 12... Rb8
{[%clk 0:02:32.7]} 13. Na4 {[%clk 0:02:42.4]} 13... Nf6 {[%clk 0:02:14.7]} 14.
Rc1 {[%clk 0:02:40.8]} 14... Ng4 {[%clk 0:02:02.7]} 15. Bf4 {[%clk 0:02:23.6]}
15... Rb4 {[%clk 0:02:00.7]} 16. e3 {[%clk 0:02:22.3]} 16... e5 {[%clk 0:01:51]}
17. dxe5 {[%clk 0:02:10.2]} 17... Nxe5 {[%clk 0:01:51.9]} 18. b3 {[%clk
0:02:08.5]} 18... Ba6 {[%clk 0:01:48.6]} 19. Bxe5 {[%clk 0:01:56.4]} 19... Bxe5
{[%clk 0:01:45.2]} 20. Re1 {[%clk 0:01:56.9]} 20... Qd6 {[%clk 0:01:40.7]} 21.
Qc2 {[%clk 0:01:50.5]} 21... Bb7 {[%clk 0:01:15.8]} 22. Qc5 {[%clk 0:01:47.1]}
22... Rb5 {[%clk 0:01:09.4]} 23. Qxd6 {[%clk 0:01:42.6]} 23... Bxd6 {[%clk
0:01:10.3]} 24. Red1 {[%clk 0:01:40.8]} 24... f5 {[%clk 0:01:08.9]} 25. Bf1
{[%clk 0:01:32.5]} 25... Ra5 {[%clk 0:01:08.5]} 26. Rc2 {[%clk 0:01:31.5]} 26...
Rc8 {[%clk 0:01:07.4]} 27. Bg2 {[%clk 0:01:10.6]} 27... Kf7 {[%clk 0:01:06.9]}
28. Rdc1 {[%clk 0:01:06.2]} 28... Ke6 {[%clk 0:01:04.4]} 29. Nc5+ {[%clk
0:00:59.4]} 29... Bxc5 {[%clk 0:01:04.4]} 30. Rxc5 {[%clk 0:01:00.3]} 30... Rxa2
{[%clk 0:01:04.4]} 31. Bxd5+ {[%clk 0:00:59.8]} 31... cxd5 {[%clk 0:00:58.5]}
32. Rxc8 {[%clk 0:01:00.7]} 32... Bxc8 {[%clk 0:00:59.4]} 33. Rxc8 {[%clk
0:01:01.6]} 33... Rb2 {[%clk 0:00:26.6]} 34. Rc7 {[%clk 0:00:59.7]} 34... a5
{[%clk 0:00:24.6]} 35. Rxh7 {[%clk 0:00:48.3]} 35... Rxb3 {[%clk 0:00:24.6]} 36.
Ra7 {[%clk 0:00:48.9]} 36... Ra3 {[%clk 0:00:24.9]} 37. Ra6+ {[%clk 0:00:48.7]}
37... Kf7 {[%clk 0:00:24.8]} 38. h4 {[%clk 0:00:47.9]} 38... Ra1+ {[%clk
0:00:20]} 39. Kg2 {[%clk 0:00:48.3]} 39... a4 {[%clk 0:00:20.9]} 40. Kf3 {[%clk
0:00:48.8]} 40... Ra2 {[%clk 0:00:20.9]} 41. Rd6 {[%clk 0:00:42]} 41... Rd2
{[%clk 0:00:19.9]} 42. Ra6 {[%clk 0:00:35.7]} 42... Ra2 {[%clk 0:00:19.9]} 43.
Rd6 {[%clk 0:00:20.3]} 43... Rd2 {[%clk 0:00:19.3]} 44. Ra6 {[%clk 0:00:20.7]}
44... Ra2 {[%clk 0:00:19.1]} 1/2-1/2